fUST/lending_fUST_20260104
["ID","MTS","AMOUNT","RATE_DAILY","PERIOD"]
[400401331,1767513040659,-500.0,0.00013273,2]
[400401332,1767513040670,-503.6024211,0.00013273,2]
[400401333,1767513040680,-503.80433478,0.00013273,2]
[400401334,1767513040689,-502.56705769,0.00013273,2]
[400401335,1767513040700,-500.0,0.00013273,2]
[400401336,1767513040710,-161.81753447,0.00013273,2]
[400401337,1767513040719,-371.86903657,0.00013273,2]
[400401338,1767513040729,-501.16405093,0.00013273,2]
[400401339,1767513040739,-531.11418259,0.00013273,2]
[400401341,1767513040748,-504.65778591,0.00013273,2]
[400401342,1767513040759,-503.58909491,0.00013273,2]
[400401344,1767513040768,-501.3085001,0.00013273,2]
[400401346,1767513040778,-503.03130178,0.00013273,2]
[400401348,1767513040788,-506.33800272,0.00013273,2]
[400401349,1767513040797,-500.94489153,0.00013273,2]
[400401350,1767513040806,-500.44740469,0.00013273,2]
[400401351,1767513040815,-500.76794471,0.00013273,2]
[400401352,1767513040825,-501.02097579,0.00013273,2]
[400401353,1767513040835,-500.8685127,0.00013273,2]
[400401354,1767513040845,-502.95447988,0.00013273,2]
[400401355,1767513040854,-502.20988126,0.00013273,2]
[400401356,1767513040863,-507.63173447,0.00013273,2]
[400401357,1767513040873,-501.85390902,0.00013273,2]
[400401358,1767513040883,-500.0,0.00013273,2]
[400401359,1767513040892,-151.0,0.00013335,2]
[400401360,1767513040901,-2145.0,0.00013335,2]
[400401361,1767513040910,-416.0,0.00013335,2]
[400401362,1767513040920,-500.0,0.0001341,2]
[400401363,1767513040930,-720.0,0.00013456,2]
[400401364,1767513040939,-407.88750582,0.00013493,2]
[400401365,1767513040948,-6054.41092811,0.0001354,2]
[400401366,1767513040958,-151.0,0.0001354,2]
[400401367,1767513040967,-151.0,0.0001354,2]
[400401368,1767513040976,-2222.346986,0.0001354,2]
[400401369,1767513040986,-2222.346986,0.0001354,2]
[400401370,1767513040995,-2222.346986,0.0001354,2]
[400401371,1767513041004,-2222.346986,0.0001354,2]
[400401372,1767513041014,-250.0,0.00013547,2]
[400401373,1767513041024,-302.55886712,0.00013673,2]
[400401374,1767513041033,-500.0,0.00013698,2]
[400401375,1767513041042,-500.0,0.00013698,2]
[400401376,1767513041051,-466.01487053,0.00013698,2]
[400401377,1767513041061,-539.69350286,0.00013698,2]
[400401378,1767513041070,-554.87286222,0.00013698,2]
[400401379,1767513041079,-220.01529461,0.00013698,2]
[400401380,1767513041089,-500.0,0.00013698,2]
[400401381,1767513041099,-500.0,0.00013698,2]
[400401382,1767513041108,-500.0,0.00013698,2]
[400401383,1767513041118,-500.0,0.00013698,2]
[400401384,1767513041127,-500.0,0.00013698,2]
[400401385,1767513041137,-500.0,0.00013698,2]
[400401386,1767513041146,-500.0,0.00013698,2]
[400401387,1767513041155,-500.0,0.00013698,2]
[400401388,1767513041164,-500.0,0.00013698,2]
[400401389,1767513041174,-500.0,0.00013698,2]
[400401390,1767513041183,-500.0,0.00013698,2]
[400401391,1767513041192,-500.0,0.00013698,2]
[400401392,1767513041201,-500.0,0.00013698,2]
[400401393,1767513041211,-500.0,0.00013698,2]
[400401394,1767513041220,-500.0,0.00013698,2]
[400401395,1767513041229,-500.0,0.00013698,2]
[400401396,1767513041239,-533.96886456,0.00013698,2]
[400401397,1767513041249,-952.893659,0.00013699,2]
[400401398,1767513041259,-151.0,0.00013699,2]
[400401399,1767513041268,-155.450126,0.00013699,2]
[400401400,1767513041278,-500.0,0.00013699,2]
[400401401,1767513041288,-625.14915525,0.00013699,2]
[400401402,1767513041297,-500.0,0.00013699,2]
[400401403,1767513041307,-587.0,0.00013862,2]
[400401404,1767513041317,-152.44,0.00013887,2]
[400401405,1767513041326,-500.0,0.00014145,2]
[400401406,1767513041336,-168.0,0.00014162,2]
[400401407,1767513041345,-151.0,0.00014175,2]
[400401408,1767513041355,-1001.57471188,0.00014247,2]
[400401409,1767513041365,-773.0,0.000144,2]
[400401410,1767513041454,-2222.346986,0.000144,2]
[400401411,1767513041464,-2222.346986,0.000144,2]
[400401412,1767513041473,-2222.346986,0.000144,2]
[400401413,1767513041484,-2222.346986,0.000144,2]
[400401414,1767513041494,-1041.66666667,0.0001442,2]
[400401415,1767513041503,-151.0,0.00014439,2]
[400401416,1767513041514,-207.552554,0.00014439,2]
[400401417,1767513041524,-168.0,0.00014439,2]
[400401418,1767513041534,-5254.3444374,0.00014447,2]
[400401419,1767513041544,-168.0,0.00014516,2]
[400401420,1767513041553,-168.0,0.00014725,2]
[400401421,1767513041563,-500.0,0.00014794,2]
[400401422,1767513041574,-864.0,0.00014801,2]
[400401423,1767513041584,-168.0,0.00014821,2]
[400401424,1767513041593,-500.0,0.00014892,2]
[400401425,1767513041603,-168.0,0.00014892,2]
[400401426,1767513041615,-376.6844498,0.00014959,2]
[400401427,1767513041629,-194.50278969,0.00015,2]
[400401428,1767513041639,-1787.16212636,0.00015,5]
[400401429,1767513041656,-213.36787364,0.00015,5]
[400401430,1767513041667,-503.15878308,0.00015,2]
[400401431,1767513041677,-262.08594674,0.00015,2]
[400401432,1767513041687,-274.558917,0.00015068,2]
[400401433,1767513041698,-168.0,0.00015084,2]
[400401434,1767513041708,-232.0,0.00015225,2]
[400401435,1767513041719,-168.0,0.00015255,2]
[400401436,1767513041729,-168.0,0.00015326,2]
[400401437,1767513041738,-168.0,0.00015337,2]
[400401438,1767513041748,-168.0,0.00015381,2]
[400401439,1767513041758,-151.0,0.000154,2]
[400401440,1767513041767,-168.0,0.00015408,2]
[400401441,1767513041776,-168.0,0.00015434,2]
[400401442,1767513041786,-470.10763383,0.00015493,2]
[400401443,1767513041795,-505.53264243,0.000155,2]
[400401444,1767513041805,-168.0,0.00015553,2]
[400401445,1767513041814,-168.0,0.00015555,2]
[400401446,1767513041824,-2807.58854045,0.00015593,2]
[400401447,1767513041834,-168.0,0.00015599,2]
[400401448,1767513041844,-168.0,0.00015694,2]
[400401449,1767513041853,-151.0,0.000159,2]
[400401450,1767513041863,-168.0,0.00015901,2]
[400401451,1767513041872,-168.0,0.00015939,2]
[400401452,1767513041882,-168.0,0.00016086,2]
[400401453,1767513041891,-151.0,0.00016086,2]
[400401454,1767513041902,-1071.84056795,0.00016109,2]
[400401455,1767513041912,-500.0,0.00016164,2]
[400401456,1767513041922,-1000.0,0.00016282,2]
[400401457,1767513041931,-2145.0,0.00016335,2]
[400401458,1767513041941,-416.0,0.00016335,2]
[400401459,1767513041951,-535.62275114,0.00016437,2]
[400401460,1767513041961,-683.1,0.00016438,2]
[400401461,1767513041971,-151.0,0.00016438,2]
[400401462,1767513041998,-1572.55315944,0.00016438,2]
[400401463,1767513042018,-1572.55315944,0.00016438,2]
[400401464,1767513042041,-1572.55315944,0.00016438,2]
[400401465,1767513042064,-1572.55315944,0.00016438,2]
[400401466,1767513042085,-1572.55315944,0.00016438,2]
[400401467,1767513042104,-1572.55315944,0.00016438,2]
[400401468,1767513042126,-1572.55315944,0.00016438,2]
[400401469,1767513042142,-1572.55315944,0.00016438,2]
[400401470,1767513042160,-1572.55315944,0.00016438,2]
[400401471,1767513042179,-1572.55315944,0.00016438,2]
[400401472,1767513042202,-1572.55315944,0.00016438,2]
[400401473,1767513042221,-1572.55315944,0.00016438,2]
[400401474,1767513042237,-1572.55315944,0.00016438,2]
[400401475,1767513042258,-1572.55315944,0.00016438,2]
[400401476,1767513042274,-1572.55315944,0.00016438,2]
[400401477,1767513042292,-1572.55315944,0.00016438,2]
[400401478,1767513042305,-1572.55315944,0.00016438,2]
[400401479,1767513042323,-1572.55315944,0.00016438,2]
[400401480,1767513042340,-1572.55315944,0.00016438,2]
[400401481,1767513042357,-1572.55315944,0.00016438,2]
[400401482,1767513042373,-1572.55315944,0.00016438,2]
[400401483,1767513042390,-1572.55315944,0.00016438,2]
[400401484,1767513042407,-1572.55315944,0.00016438,2]
[400401485,1767513042424,-1572.55315944,0.00016438,2]
[400401486,1767513042441,-1572.55315944,0.00016438,2]
[400401487,1767513042458,-1572.55315944,0.00016438,2]
[400401488,1767513042473,-1572.55315944,0.00016438,2]
[400401489,1767513042490,-1572.55315944,0.00016438,2]
[400401490,1767513042506,-1572.55315944,0.00016438,2]
[400401491,1767513042524,-1572.55315944,0.00016438,2]
[400401492,1767513042543,-1572.55315944,0.00016438,2]
[400401493,1767513042561,-1572.55315944,0.00016438,2]
[400401494,1767513042579,-1572.55315944,0.00016438,2]
[400401495,1767513042596,-1551.38417459,0.00016438,2]
[400401496,1767513042613,-1551.38417459,0.00016438,2]
[400401497,1767513042632,-1551.38417459,0.00016438,2]
[400401498,1767513042649,-1551.38417459,0.00016438,2]
[400401499,1767513042666,-1551.38417459,0.00016438,2]
[400401500,1767513042683,-1551.38417459,0.00016438,2]
[400401501,1767513042700,-1551.38417459,0.00016438,2]
[400401502,1767513042717,-1551.38417459,0.00016438,2]
[400401503,1767513042735,-1551.38417459,0.00016438,2]
[400401504,1767513042752,-1551.38417459,0.00016438,2]
[400401505,1767513042769,-1551.38417459,0.00016438,2]
[400401506,1767513042779,-1551.38417459,0.00016438,2]
[400401507,1767513042788,-1551.38417459,0.00016438,2]
[400401508,1767513042798,-1551.38417459,0.00016438,2]
[400401509,1767513042808,-1551.38417459,0.00016438,2]
[400401510,1767513042817,-1551.38417459,0.00016438,2]
[400401511,1767513042827,-1551.38417459,0.00016438,2]
[400401512,1767513042838,-1551.38417459,0.00016438,2]
[400401517,1767513043039,-1551.38417459,0.00016438,2]
[400401518,1767513043051,-1551.38417459,0.00016438,2]
[400401519,1767513043060,-23.40192494,0.00016438,2]
[400401520,1767513043522,-0.00886448,0.00016438,2]
[400401539,1767513045746,-178.0,0.00013335,2]
[400401541,1767513045757,-1987.81007158,0.0001442,2]
[400401543,1767513045767,-178.0,0.00016335,2]
[400401545,1767513045777,-1527.97338517,0.00016438,2]
[400401547,1767513045787,-880.9583857,0.00016438,2]
[400401549,1767513045806,-670.42578889,0.00016438,2]
[400401550,1767513045816,-1555.66385508,0.00016438,2]
[400401551,1767513045826,-1555.66385508,0.00016438,2]
[400401552,1767513045835,-1555.66385508,0.00016438,2]
[400401553,1767513045844,-417.16281264,0.00016438,2]
[400401563,1767513059843,168.71,7.474e-05,2]
[400401564,1767513060254,224.95,7.799e-05,2]
[400401565,1767513060675,281.19,8.124e-05,2]
[400401567,1767513061079,337.43,8.449e-05,2]
[400401568,1767513061518,131.94350612,8.773e-05,2]
[400401569,1767513061552,261.72649388,8.773e-05,2]
[400401570,1767513061962,449.9,9.098e-05,2]
[400401571,1767513062406,506.14,9.423e-05,2]
[400401572,1767513062807,562.38,9.748e-05,2]
[400401575,1767513120801,500.0,0.00011491,2]
[400401577,1767513122160,500.0,0.00011491,2]
[400401578,1767513122861,500.0,0.00011491,2]
[400401579,1767513122895,500.0,0.00011491,2]
[400401580,1767513122930,333.95663434,0.00011491,2]
[400401581,1767513123000,500.0,0.00011491,2]
[400401582,1767513126279,500.0,0.00011491,2]
[400401583,1767513126317,371.17103231,0.00011491,2]
[400401584,1767513126352,500.0,0.00011491,2]
[400401585,1767513126405,172.1600948,0.00011491,2]
[400401586,1767513126438,326.06645164,0.00011491,2]
[400401589,1767513132407,152.15,9.036e-05,2]
[400401590,1767513132805,171.17,9.358e-05,2]
[400401591,1767513146942,3193.18929303,0.00011392,2]
[400401592,1767513146978,10000.01,0.00011392,2]
[400401593,1767513147011,297421.53830157,0.00011392,2]
[400401594,1767513160222,-400.71396116,0.00011391,2]
[400401595,1767513160254,-500.0,0.00011391,2]
[400401596,1767513160292,-500.0,0.00011391,2]
[400401597,1767513160329,-500.0,0.00011391,2]
[400401598,1767513160361,-305.16037679,0.00011391,2]
[400401599,1767513160397,-500.0,0.00011391,2]
[400401600,1767513160435,-500.0,0.00011391,2]
[400401601,1767513160469,-500.0,0.00011391,2]
[400401602,1767513160504,-500.0,0.00011391,2]
[400401603,1767513160540,-186.38313814,0.00011391,2]
[400401604,1767513166350,-6997.93052608,0.00011392,2]
[400401605,1767513166438,-10000.01,0.00011392,2]
[400401606,1767513166628,-10000.01,0.00011392,2]
[400401607,1767513172817,-500.0,0.00011391,2]
[400401608,1767513172856,-500.0,0.00011391,2]
[400401609,1767513172894,-500.0,0.00011391,2]
[400401610,1767513172931,-500.0,0.00011391,2]
[400401611,1767513172967,-627.62439081,0.00011391,2]
[400401612,1767513173002,-500.0,0.00011391,2]
[400401613,1767513173038,-500.0,0.00011391,2]
[400401614,1767513173075,-500.0,0.00011391,2]
[400401615,1767513173263,-1744.76121838,0.00011392,2]
[400401616,1767513173304,-10000.01,0.00011392,2]
[400401617,1767513197221,150.26,7.255e-05,2]
[400401618,1767513197644,300.53,7.601e-05,2]
[400401619,1767513198244,450.79,7.946e-05,2]
[400401620,1767513198533,601.05,8.292e-05,2]
[400401621,1767513198890,751.31,8.637e-05,2]
[400401622,1767513199290,901.58,8.983e-05,2]
[400401623,1767513199712,1051.84,9.328e-05,2]
[400401624,1767513200150,1202.1,9.674e-05,2]
[400401625,1767513200548,1352.36,0.00010019,2]
[400401626,1767513200961,1502.63,0.00010365,2]
[400401627,1767513201191,1735.56,0.00011211,2]
[400401628,1767513201221,2466.75486387,0.00011211,2]
[400401629,1767513253647,5000.0,0.00011211,2]
[400401631,1767513272649,232.56,7.109e-05,2]
[400401632,1767513273074,348.85,7.432e-05,2]
[400401633,1767513273503,465.13,7.755e-05,2]
[400401634,1767513273922,581.41,8.079e-05,2]
[400401635,1767513274350,697.69,8.402e-05,2]
[400401636,1767513274777,813.98,8.725e-05,2]
[400401637,1767513275172,930.26,9.048e-05,2]
[400401638,1767513275613,930.13,9.371e-05,2]
[400401639,1767513275642,116.41,9.371e-05,2]
[400401640,1767513276073,1162.82,9.694e-05,2]
[400401641,1767513277250,5000.0,0.00011211,2]
[400401644,1767513300474,3720.78,0.00011211,2]
[400401645,1767513300505,1279.22,0.00011211,2]
[400401759,1767513324653,5000.0,0.00011211,2]
[400401778,1767513347896,3720.79,0.00011211,2]
[400401779,1767513347932,1279.21,0.00011211,2]
[400401780,1767513348414,157.75,7.458e-05,2]
[400401781,1767513348807,210.33,7.782e-05,2]
[400401782,1767513349227,262.92,8.107e-05,2]
[400401783,1767513349637,315.5,8.431e-05,2]
[400401784,1767513350064,368.08,8.755e-05,2]
[400401785,1767513350468,420.67,9.08e-05,2]
[400401786,1767513350967,473.25,9.404e-05,2]
[400401787,1767513351418,525.83,9.728e-05,2]
[400401807,1767513371648,5000.0,0.00011211,2]
[400401808,1767513383069,-300.0,0.0001139,2]
[400401809,1767513383093,-267.0,0.0001139,2]
[400401810,1767513383116,-1200.0,0.0001139,2]
[400401811,1767513383139,-300.0,0.0001139,2]
[400401812,1767513383160,-247.23602273,0.00011391,2]
[400401813,1767513383186,-500.0,0.00011391,2]
[400401814,1767513383212,-500.0,0.00011391,2]
[400401815,1767513383238,-500.0,0.00011391,2]
[400401816,1767513383263,-500.0,0.00011391,2]
[400401817,1767513383299,-408.35708006,0.00011391,2]
[400401818,1767513383326,-207.38642038,0.00011391,2]
[400401819,1767513383355,-457.13408194,0.00011391,2]
[400401820,1767513383381,-500.0,0.00011391,2]
[400401821,1767513383408,-500.0,0.00011391,2]
[400401822,1767513383435,-500.0,0.00011391,2]
[400401823,1767513383462,-500.0,0.00011391,2]
[400401824,1767513383489,-500.0,0.00011391,2]
[400401825,1767513383514,-351.46166218,0.00011391,2]
[400401826,1767513383540,-500.0,0.00011391,2]
[400401827,1767513383566,-500.0,0.00011391,2]
[400401828,1767513383592,-500.0,0.00011391,2]
[400401829,1767513383618,-261.42473271,0.00011391,2]
[400401831,1767513385931,-238.57526729,0.00011391,2]
[400401832,1767513385954,-500.0,0.00011391,2]
[400401833,1767513385978,-650.0,0.00011391,2]
[400401834,1767513386000,-500.0,0.00011391,2]
[400401835,1767513386022,-500.0,0.00011391,2]
[400401836,1767513386044,-333.3753483,0.00011391,2]
[400401837,1767513386073,-7278.04938441,0.00011392,2]
[400401838,1767513392128,-4000.0,0.00011392,2]
[400401839,1767513395251,986.47,0.00011211,2]
[400401840,1767513395343,4013.53,0.00011211,2]
[400401842,1767513418914,5000.0,0.00011212,2]
[400401843,1767513421295,160.05,8.25e-05,2]
[400401848,1767513428563,-300.0,0.00011391,2]
[400401849,1767513428592,-9700.0,0.00011392,2]
[400401855,1767513442331,2826.03339286,0.00011212,2]
[400402063,1767513690835,200.0,0.00023155,120]
[400402096,1767513810843,200.0,0.00029209,120]
[400402143,1767513855477,500.0,0.00029209,120]
[400402144,1767513857307,500.0,0.00029209,120]
[400402146,1767513858440,500.0,0.00029209,120]
[400402148,1767513859768,500.0,0.00029209,120]
[400402151,1767513861339,500.0,0.00029209,120]
[400402153,1767513863567,500.0,0.00029209,120]
[400402154,1767513865253,500.0,0.00029209,120]
[400402160,1767513866902,569.03,0.00029209,120]
[400402207,1767513931635,-151.0,0.00011385,2]
[400402208,1767513931722,-151.0,0.00011385,2]
[400402209,1767513931812,-156.48658679,0.00011385,2]
[400402210,1767513931900,-350.12733076,0.00011387,2]
[400402211,1767513931993,-300.0,0.00011389,2]
[400402212,1767513932078,-300.0,0.00011389,2]
[400402213,1767513932164,-352.0,0.00011389,2]
[400402214,1767513944008,-1999.94408529,0.0001139,2]
[400402220,1767513975285,2662.7717496,0.00010573,2]
[400402221,1767513982205,-500.82274639,0.0001139,2]
[400402222,1767513982227,-6000.12182942,0.0001139,2]
[400402223,1767513982249,-580.0,0.0001139,2]
[400402224,1767513982276,-2919.05542419,0.00011392,2]
[400402283,1767514081057,253.64,8.991e-05,2]
[400402284,1767514081335,161.91,8.991e-05,2]
[400402286,1767514081677,161.9,8.991e-05,2]
[400402287,1767514110844,200.0,0.00029585,120]
[400402326,1767514183337,-694.3284621,0.00011292,2]
[400402327,1767514184943,-544.06,0.00011292,2]
[400402330,1767514188222,-243.25603843,0.00011292,2]
[400402332,1767514191409,-250.67977416,0.00011292,2]
[400402346,1767514209970,-234.63101138,0.00011292,2]
[400402348,1767514212277,200.0,0.00030137,120]
[400402349,1767514215040,200.0,0.00030137,120]
[400402353,1767514216481,-469.26202276,0.00011292,2]
[400402356,1767514218466,200.0,0.00030137,120]
[400402359,1767514222116,173.17,9.692e-05,2]
[400402360,1767514222473,-938.52404552,0.00011292,2]
[400402363,1767514222627,197.91,0.00010051,2]
[400402364,1767514223358,222.64,0.0001041,2]
[400402365,1767514223774,247.38,0.00010769,2]
[400402370,1767514228851,-1877.04809104,0.00011292,2]
[400402411,1767514232609,-6245.91381792,0.00011292,2]
[400402413,1767514232618,-579.0,0.00011292,2]
[400402415,1767514232628,-300.0,0.00011388,2]
[400402417,1767514232638,-343.12478415,0.00011389,2]
[400402419,1767514232648,-500.0,0.0001139,2]
[400402421,1767514232658,-500.0,0.0001139,2]
[400402423,1767514232668,-500.0,0.0001139,2]
[400402425,1767514232677,-500.0,0.0001139,2]
[400402427,1767514232686,-211.77487664,0.0001139,2]
[400402428,1767514232695,-500.0,0.0001139,2]
[400402429,1767514232704,-500.0,0.0001139,2]
[400402430,1767514232714,-500.0,0.0001139,2]
[400402431,1767514232723,-500.0,0.0001139,2]
[400402432,1767514232734,-500.0,0.0001139,2]
[400402433,1767514232743,-500.0,0.0001139,2]
[400402434,1767514232752,-500.0,0.0001139,2]
[400402435,1767514232762,-500.0,0.0001139,2]
[400402436,1767514232772,-318.54595253,0.0001139,2]
[400402437,1767514232795,-181.45404747,0.0001139,2]
[400402438,1767514232804,-500.0,0.0001139,2]
[400402439,1767514232814,-500.0,0.0001139,2]
[400402440,1767514232823,-23.76253452,0.0001139,2]
[400402441,1767514232840,-476.23746548,0.0001139,2]
[400402442,1767514232851,-500.0,0.0001139,2]
[400402443,1767514232867,-500.0,0.0001139,2]
[400402444,1767514232876,-312.46460629,0.0001139,2]
[400402445,1767514232886,-500.0,0.0001139,2]
[400402446,1767514232896,-500.0,0.0001139,2]
[400402447,1767514232905,-500.0,0.0001139,2]
[400402448,1767514232915,-267.59523112,0.0001139,2]
[400402449,1767514232925,-280.49977281,0.00011391,2]
[400402450,1767514232935,-563.61226375,0.00011391,2]
[400402451,1767514232945,-1004.55959039,0.00011392,2]
[400402452,1767514232954,-300.0,0.00011617,2]
[400402453,1767514232964,-300.0,0.00011617,2]
[400402454,1767514232973,-300.0,0.00011617,2]
[400402455,1767514232983,-300.0,0.00011617,2]
[400402456,1767514232993,-300.0,0.00011617,2]
[400402457,1767514233006,-300.0,0.00011617,2]
[400402458,1767514233015,-300.0,0.00011617,2]
[400402459,1767514233024,-300.0,0.00011617,2]
[400402460,1767514233034,-300.0,0.00011617,2]
[400402461,1767514233046,-300.0,0.00011617,2]
[400402462,1767514233055,-300.0,0.00011617,2]
[400402463,1767514233065,-300.0,0.00011617,2]
[400402464,1767514233074,-196.64075308,0.00011617,2]
[400402465,1767514233086,-103.35924692,0.00011617,2]
[400402466,1767514233095,-300.0,0.00011617,2]
[400402467,1767514233106,-300.0,0.00011617,2]
[400402468,1767514233116,-600.0,0.00011617,2]
[400402469,1767514233126,-187.586,0.00011891,2]
[400402470,1767514233135,-14177.65475321,0.000121,2]
[400402471,1767514233146,-356.90616913,0.000121,2]
[400402472,1767514233157,-525.06757274,0.000121,2]
[400402473,1767514233168,-11706.01397739,0.000121,2]
[400402510,1767514238718,-1486.14722873,0.000121,2]
[400402512,1767514238730,-677.42648617,0.000121,2]
[400402513,1767514238741,-1340.016455,0.000121,2]
[400402543,1767514241169,-2645.24954528,0.000121,2]
[400402579,1767514245321,-2583.20300195,0.000121,2]
[400402581,1767514245332,-644.39,0.00012329,2]
[400402583,1767514245341,-500.0,0.00012329,2]
[400402584,1767514245351,-500.0,0.00012329,2]
[400402585,1767514245361,-500.0,0.00012329,2]
[400402586,1767514245370,-500.0,0.00012329,2]
[400402587,1767514245379,-500.0,0.00012329,2]
[400402588,1767514245389,-500.0,0.00012329,2]
[400402589,1767514245399,-538.43093492,0.00012329,2]
[400402590,1767514245409,-500.0,0.00012329,2]
[400402591,1767514245419,-500.0,0.00012329,2]
[400402592,1767514245429,-500.0,0.00012329,2]
[400402593,1767514245439,-500.0,0.00012329,2]
[400402594,1767514245449,-420.0,0.00012509,2]
[400402595,1767514245460,-322.07839853,0.00012728,2]
[400402596,1767514245470,-720.0,0.00012779,2]
[400402597,1767514245480,-2119.19842984,0.000129,2]
[400402598,1767514245492,-1821.55989821,0.000129,2]
[400402599,1767514245502,-500.0,0.00013019,2]
[400402600,1767514245512,-404.8872453,0.00013389,2]
[400402601,1767514245523,-501.20908816,0.00013699,2]
[400402602,1767514245532,-587.0,0.00013741,2]
[400402603,1767514245542,-2145.0,0.00013783,2]
[400402604,1767514245552,-864.0,0.00014057,2]
[400402605,1767514245562,-1966.40250681,0.00014175,2]
[400402606,1767514245572,-3782.80501363,0.00014175,2]
[400402607,1767514245583,-5585.43353717,0.00014198,2]
[400402608,1767514245604,-13.77398327,0.00014198,2]
[400402609,1767514245614,-297.22601673,0.00014316,2]
[400402638,1767514246779,-744.44398327,0.00014316,2]
[400402639,1767514246789,-127.40792238,0.00014413,2]
[400402640,1767514246801,-914.25874429,0.00014413,2]
[400402641,1767514246811,-1855.2385684,0.0001444,2]
[400402648,1767514287518,682.04489543,0.0001121,2]
[400402649,1767514290506,200.0,0.00028799,120]
[400402650,1767514291365,200.0,0.00030136,120]
[400402659,1767514306905,160.3,0.0001,2]
[400402660,1767514308800,160.3,0.000102,2]
[400402661,1767514310691,160.3,0.000104,2]
[400402662,1767514312632,160.3,0.000106,2]
[400402663,1767514314573,160.3,0.000108,2]
[400402664,1767514316605,160.3,0.00011,2]
[400402665,1767514321991,-6089.55875116,0.00011292,2]
[400402667,1767514322096,-10000.01,0.00011292,2]
[400402668,1767514331029,-300.0,0.00011291,2]
[400402669,1767514331201,-9400.01,0.00011292,2]
[400402670,1767514331415,-10000.01,0.00011292,2]
[400402679,1767514413183,-300.0,0.0001129,2]
[400402680,1767514413261,-1002.0,0.0001129,2]
[400402681,1767514413338,-230.68284548,0.00011291,2]
[400402682,1767514413563,-522.98876649,0.00011291,2]
[400402683,1767514413644,-522.98876649,0.00011291,2]
[400402684,1767514413723,-522.98876649,0.00011291,2]
[400402685,1767514413819,-522.98876649,0.00011291,2]
[400402686,1767514413904,-522.98876649,0.00011291,2]
[400402687,1767514413987,-522.98876649,0.00011291,2]
[400402688,1767514414066,-158.77911116,0.00011291,2]
[400402689,1767514414855,-341.22088884,0.00011291,2]
[400402690,1767514428131,71073.8,0.00030137,120]
[400402691,1767514429229,-522.98876649,0.00011291,2]
[400402692,1767514429327,-522.98876649,0.00011291,2]
[400402693,1767514429426,-522.98876649,0.00011291,2]
[400402694,1767514429514,-522.98876649,0.00011291,2]
[400402695,1767514429604,-522.98876649,0.00011291,2]
[400402696,1767514429688,-522.98876649,0.00011291,2]
[400402697,1767514429770,-522.98876649,0.00011291,2]
[400402698,1767514429843,-500.0,0.00011291,2]
[400402699,1767514429915,-500.0,0.00011291,2]
[400402700,1767514429988,-178.16726914,0.00011291,2]
[400402701,1767514430290,-321.83273086,0.00011291,2]
[400402702,1767514430366,-500.0,0.00011291,2]
[400402703,1767514430443,-641.50153915,0.00011291,2]
[400402704,1767514430523,-500.0,0.00011291,2]
[400402705,1767514430606,-500.0,0.00011291,2]
[400402706,1767514430684,-500.0,0.00011291,2]
[400402707,1767514430761,-500.0,0.00011291,2]
[400402708,1767514430837,-441.71910135,0.00011291,2]
[400402709,1767514430915,-208.742528,0.00011291,2]
[400402710,1767514430994,-500.0,0.00011291,2]
[400402711,1767514431071,-272.41820128,0.00011291,2]
[400402712,1767514432619,-58.28089865,0.00011291,2]
[400402713,1767514432694,-169.30090007,0.00011291,2]
[400402714,1767514432704,-330.69909993,0.00011291,2]
[400402715,1767514453360,-300.0,0.0001129,2]